[Event "European School-ch 2019"]
[Site "Mamaia"]
[Date "2019.06.05"]
[Round "6.13"]
[White "Levin, Guy"]
[Black "Simonyan, Grigori"]
[Result "0-1"]
[ECO "A14"]
[WhiteElo "2054"]
[BlackElo "2019"]
[Annotator "NA RC"]
[PlyCount "100"]
[EventDate "2019.05.31"]
[EventType "swiss"]
[EventCountry "ROU"]
[SourceTitle "playchess.com"]
[Source "ChessBase"]
[SourceQuality "1"]
[TimeControl "40/5400+30:1800+30"]

1. Nf3 {[%emt 0:00:00]} Nf6 {[%emt 0:00:00]} 2. c4 {[%emt 0:00:00]} e6 {[%emt 0:01:49]} 3. g3 {[%emt 0:00:02]} d5 {[%emt 0:00:21]} 4. Bg2 {[%emt 0:00:11]} Be7 {[%emt 0:00:11]} 5. O-O {[%emt 0:00:10]} O-O {[%emt 0:00:07]} 6. b3 {[%emt 0:00:08]} a5 {[%emt 0:02:02]} 7. Bb2 {[%emt 0:00:30]} a4 {[%emt 0:01:23]} 8. d4 {[%emt 0:00:23] A14: English Opening: 1...e6 with b3 by White} (8. e3 axb3 9. Qxb3 Nc6 10. cxd5 Qxd5 11. Qxd5 exd5 12. Rc1 Bd8 13. Nc3 Nb4 14. Ne5 c6 15. a3 Na6 {1-0 (65) Tomashevsky,E (2714)-Buhmann,R (2589) Berlin 2018}) 8... c6 {[%emt 0:01:38]} 9. Nc3 $146 ({Predecessor:} 9. Nbd2 Qa5 10. Qc2 b5 11. c5 a3 12. Bc1 Nbd7 13. e4 Nxe4 14. Nxe4 dxe4 15. Qxe4 {½-½ (71) Girish,A (2412)-Nguyen,D (2504) Bhopal 2017}) 9... b5 {[%emt 0:10:26]} 10. cxb5 {[%emt 0:01:26]} a3 {[%emt 0:00:23]} 11. Bc1 {[%emt 0:00:05]} cxb5 {[%emt 0:00:02]} 12. Ne5 {[%emt 0:04:24]} b4 {[%emt 0:07:21]} 13. Na4 {[%emt 0:00:47]} Nfd7 {[%emt 0:02:08]} 14. Nd3 {[%emt 0:01:04]} Nc6 {[%emt 0:00:14]} 15. e4 {[%emt 0:06:57]} Qa5 {[%emt 0:14:07]} 16. exd5 {[%emt 0:04:07]} exd5 {[%emt 0:00:05]} 17. Ndc5 {[%emt 0:01:07]} (17. Re1 $14) 17... Nxc5 {[%emt 0:04:51]} 18. Nxc5 {[%emt 0:07:34]} Nxd4 {[%emt 0:04:57]} 19. Qxd4 {[%emt 0:01:10]} Bxc5 {[%emt 0:03:38]} 20. Qxd5 {[%emt 0:01:15]} Ba6 {[%emt 0:00:06]} 21. Re1 {[%emt 0:11:53]} Rad8 {[%emt 0:02:13]} 22. Qe5 {[%emt 0:04:14]} Qb6 {[%emt 0:02:22]} 23. Be3 {[%emt 0:03:37]} Bxe3 {[%emt 0:00:24]} 24. Qxe3 {[%emt 0:01:07]} Qxe3 {[%emt 0:00:24]} 25. Rxe3 {[%emt 0:00:02]} Rd2 {[%emt 0:00:25]} 26. Re4 {[%emt 0:05:39]} Rb8 {[%emt 0:00:12]} ({Black should play} 26... Rfd8 $17) 27. Bf1 {[%emt 0:01:05]} f5 {[%emt 0:04:49]} 28. Re7 {[%emt 0:04:03]} Bxf1 {[%emt 0:00:18]} 29. Kxf1 {[%emt 0:01:00]} Rc8 {[%emt 0:01:24]} 30. Re2 {[%emt 0:01:49]} Rcc2 {[%emt 0:07:38]} 31. Rxd2 {[%emt 0:00:12]} Rxd2 {[%emt 0:00:04]} 32. Kg2 {[%emt 0:00:07]} Kf7 {[%emt 0:06:08]} 33. Rc1 {[%emt 0:01:18]} Rxa2 {[%emt 0:00:57]} 34. Rc4 {[%emt 0:00:01]} Rb2 {[%emt 0:05:29]} 35. Rxb4 {[%emt 0:00:08]} Rb1 {[%emt 0:00:08]} 36. Rb7+ {[%emt 0:04:33]} Kf6 {[%emt 0:00:18]} 37. Ra7 {[%emt 0:00:09]} Rxb3 {[%emt 0:00:03]} 38. Ra6+ {[%emt 0:13:14]} Ke5 {[%emt 0:03:09]} 39. Ra7 {[%emt 0:00:12]} Ke4 {[%emt 0:04:03]} 40. Rxg7 {[%emt 0:00:00]} a2 {[%emt 0:00:00]} 41. f3+ {[%emt 0:04:59]} Ke3 {[%emt 0:06:42]} 42. Re7+ {[%emt 0:00:25]} Kd2 {[%emt 0:00:56]} 43. Ra7 {[%emt 0:00:08]} Rb2 {[%emt 0:00:02]} 44. h4 {[%emt 0:10:34]} Ke3+ {[%emt 0:00:52]} 45. Kh3 {[%emt 0:01:46]} Kxf3 {[%emt 0:00:05]} 46. Ra5 {[%emt 0:00:12]} Ke2 {[%emt 0:06:15]} 47. h5 {[%emt 0:00:08]} Kd1 {[%emt 0:00:38]} 48. Rxf5 {[%emt 0:00:11]} Kc2 {[%emt 0:03:35]} (48... Rb1 $142 49. Ra5 a1=Q 50. Rxa1 Rxa1) 49. Ra5 {[%emt 0:00:44]} Kb1 {[%emt 0:02:56]} 50. Kg4 {[%emt 0:03:12]} a1=Q {[%emt 0:02:27]} 0-1

[Event "European School-ch 2019"]
[Site "Mamaia"]
[Date "2019.06.05"]
[Round "6.14"]
[White "Andreev, Konstantin"]
[Black "Tashev, Aleksandar"]
[Result "1/2-1/2"]
[ECO "A05"]
[WhiteElo "2276"]
[BlackElo "2119"]
[Annotator "RC"]
[PlyCount "64"]
[EventDate "2019.05.31"]
[EventType "swiss"]
[EventCountry "ROU"]
[SourceTitle "playchess.com"]
[Source "ChessBase"]
[SourceQuality "1"]
[TimeControl "40/5400+30:1800+30"]

1. Nf3 {[%emt 0:00:00]} Nf6 {[%emt 0:00:00]} 2. c4 {[%emt 0:00:00]} e6 {[%emt 0:00:08]} 3. e3 {[%emt 0:00:00]} b6 {[%emt 0:01:43]} 4. b3 {[%emt 0:00:01]} Bb7 {[%emt 0:00:50]} 5. Bb2 {[%emt 0:00:11]} d5 {[%emt 0:01:10]} 6. cxd5 {[%emt 0:00:14]} exd5 {[%emt 0:00:51]} 7. Be2 {[%emt 0:00:13]} Bd6 {[%emt 0:06:39]} 8. O-O {[%emt 0:00:17]} O-O {[%emt 0:01:08]} 9. Nc3 {[%emt 0:00:39]} a6 {[%emt 0:01:52]} 10. Rc1 {[%emt 0:00:51]} Nbd7 {[%emt 0:01:14]} 11. Qc2 {[%emt 0:01:53]} Re8 {[%emt 0:05:09]} 12. Rfd1 {[%emt 0:02:48]} Ne4 {[%emt 0:10:41]} 13. d3 {[%emt 0:01:35]} Ng5 {[%emt 0:01:08]} 14. Nd4 {[%emt 0:04:36]} Qf6 {[%emt 0:05:45]} 15. Nf3 {[%emt 0:08:36]} Qh6 {[%emt 0:07:21]} 16. h4 {[%emt 0:17:39]} Nxf3+ {[%emt 0:19:43]} 17. Bxf3 {[%emt 0:00:15]} Ne5 {[%emt 0:05:31]} 18. Bxd5 {[%emt 0:04:24]} c6 {[%emt 0:06:48]} 19. d4 {[%emt 0:11:36]} Ng4 {[%emt 0:04:29]} 20. Bf3 {[%emt 0:09:02]} Qxh4 {[%emt 0:00:58]} 21. Ne4 {[%emt 0:04:35]} Bh2+ {[%emt 0:02:28]} 22. Kf1 {[%emt 0:00:43]} f5 {[%emt 0:00:17]} 23. Bxg4 {[%emt 0:02:06]} fxe4 {[%emt 0:01:56]} 24. Bh3 {[%emt 0:11:18]} a5 {[%emt 0:03:33]} 25. Rd2 {[%emt 0:01:35]} Rf8 {[%emt 0:01:28]} 26. Ke1 {[%emt 0:04:05]} Rxf2 {[%emt 0:05:03]} 27. Rxf2 {[%emt 0:00:32]} Rf8 {[%emt 0:00:15]} 28. Kf1 {[%emt 0:00:33]} Ba6+ {[%emt 0:00:14]} 29. Ke1 {[%emt 0:01:02]} Bg3 {[%emt 0:01:03]} 30. Qxc6 {[%emt 0:03:42]} Bxf2+ {[%emt 0:01:16]} 31. Kd2 {[%emt 0:00:54]} Bxe3+ {[%emt 0:00:28]} 32. Kxe3 Qf4# {[%emt 0:00:12]} 1/2-1/2

[Event "European School-ch 2019"]
[Site "Mamaia"]
[Date "2019.06.05"]
[Round "6.15"]
[White "Nastore, Pavel-Alexandru"]
[Black "Dias, Savin"]
[Result "1-0"]
[ECO "E32"]
[WhiteElo "1942"]
[BlackElo "1858"]
[Annotator "NA RC"]
[PlyCount "105"]
[EventDate "2019.05.31"]
[EventType "swiss"]
[EventCountry "ROU"]
[SourceTitle "playchess.com"]
[Source "ChessBase"]
[SourceQuality "1"]
[TimeControl "40/5400+30:1800+30"]

1. d4 {[%emt 0:00:00]} Nf6 {[%emt 0:00:00]} 2. c4 {[%emt 0:00:00]} e6 {[%emt 0:00:00]} 3. Nc3 {[%emt 0:00:00]} Bb4 {[%emt 0:00:00]} 4. Qc2 {[%emt 0:00:00]} O-O {[%emt 0:00:00]} 5. Nf3 {[%emt 0:00:00]} c5 {[%emt 0:01:04]} 6. dxc5 {[%emt 0:00:15]} Na6 {[%emt 0:00:28]} 7. g3 {[%emt 0:08:42]} Nxc5 {[%emt 0:00:39]} 8. Bd2 {[%emt 0:05:03]} b6 {[%emt 0:02:54]} 9. Bg2 {[%emt 0:03:09]} Bb7 {[%emt 0:00:27]} 10. O-O {[%emt 0:03:26]} h6 $146 {[%emt 0:05:17] E39: Nimzo-Indian: Classical: 4...c5 5 dxc5 0-0} ({Predecessor:} 10... Rc8 11. Nb5 Bxd2 12. Nxd2 Bxg2 13. Kxg2 a6 14. Nc3 d5 15. cxd5 exd5 16. Rad1 Qe7 17. Nf3 Nce4 18. Qd3 Nxc3 19. bxc3 {0-1 (46) Carleton,J (2293)-Gordon,S (2528) England 2017}) 11. Rfd1 {[%emt 0:03:21]} Rc8 {[%emt 0:04:05]} 12. Ne5 {[%emt 0:19:33]} Bxg2 {[%emt 0:04:10]} 13. Kxg2 {[%emt 0:00:06]} Qc7 {[%emt 0:05:10]} 14. Nb5 {[%emt 0:09:19]} Qxe5 {[%emt 0:01:15]} 15. Bxb4 {[%emt 0:00:08]} a5 {[%emt 0:04:17]} 16. Bc3 {[%emt 0:03:31]} Qe4+ {[%emt 0:00:54]} 17. Qxe4 {[%emt 0:00:34]} Ncxe4 {[%emt 0:00:12]} 18. Bxf6 {[%emt 0:00:58]} Nxf6 {[%emt 0:00:08]} 19. Nd6 {[%emt 0:00:15]} Rc7 {[%emt 0:03:34]} 20. b3 {[%emt 0:01:22]} Rd8 {[%emt 0:00:39]} 21. Rd2 {[%emt 0:08:14]} Kf8 {[%emt 0:01:14]} 22. Rad1 {[%emt 0:00:16]} Ke7 {[%emt 0:00:36]} 23. e4 {[%emt 0:01:12]} Ne8 $16 {[%emt 0:07:36]} 24. e5 {[%emt 0:02:59]} f5 {[%emt 0:03:16]} 25. f4 {[%emt 0:01:22]} g5 {[%emt 0:01:44]} 26. h4 {[%emt 0:02:57]} g4 {[%emt 0:01:41]} 27. Kf2 {[%emt 0:00:14]} Ra7 {[%emt 0:02:58]} 28. Nb5 {[%emt 0:00:11]} Raa8 {[%emt 0:01:12]} 29. Ke3 {[%emt 0:01:18]} Rac8 {[%emt 0:01:02]} 30. Rd4 {[%emt 0:00:25]} Rc6 {[%emt 0:02:11]} 31. R1d3 {[%emt 0:00:07]} Rcc8 {[%emt 0:05:58]} 32. a3 {[%emt 0:00:33]} Nc7 {[%emt 0:03:07]} 33. Nd6 {[%emt 0:01:44]} Rb8 {[%emt 0:00:29]} 34. Nf7 {[%emt 0:04:57]} Na6 {[%emt 0:04:34]} 35. Nxd8 {[%emt 0:00:18]} Rxd8 {[%emt 0:00:05]} 36. Rd6 {[%emt 0:00:55]} Nc5 {[%emt 0:00:10]} 37. Rxb6 {[%emt 0:00:48]} Nxd3 {[%emt 0:00:05]} 38. Kxd3 {[%emt 0:00:02]} Ra8 {[%emt 0:00:16]} 39. Kd4 {[%emt 0:00:11]} Kd8 {[%emt 0:04:35]} 40. c5 {[%emt 0:00:00]} Kc7 {[%emt 0:00:00]} 41. Kc4 {[%emt 0:00:53]} Ra7 {[%emt 0:08:42]} 42. Kb5 {[%emt 0:00:22]} Ra8 {[%emt 0:00:09]} 43. b4 {[%emt 0:02:33]} axb4 {[%emt 0:00:08]} 44. Kxb4 {[%emt 0:00:03]} Ra7 {[%emt 0:00:18]} 45. a4 {[%emt 0:00:04]} Ra8 {[%emt 0:00:08]} 46. a5 {[%emt 0:00:04]} Ra7 {[%emt 0:00:04]} 47. a6 {[%emt 0:00:26]} Ra8 {[%emt 0:01:10]} 48. Kb5 {[%emt 0:00:42]} Ra7 {[%emt 0:00:32]} 49. h5 {[%emt 0:01:15]} Ra8 {[%emt 0:01:08]} 50. Rb7+ {[%emt 0:00:08]} Kc8 {[%emt 0:00:10]} 51. Kb6 {[%emt 0:00:05]} Kd8 {[%emt 0:00:18]} 52. a7 {[%emt 0:01:26]} Kc8 {[%emt 0:00:12]} 53. c6 1-0

[Event "European School-ch 2019"]
[Site "Mamaia"]
[Date "2019.06.05"]
[Round "6.16"]
[White "Baranciuc, Alexandr"]
[Black "Triboi, Alexander"]
[Result "1/2-1/2"]
[ECO "B03"]
[WhiteElo "1900"]
[BlackElo "1748"]
[Annotator "NA RC"]
[PlyCount "137"]
[EventDate "2019.05.31"]
[EventType "swiss"]
[EventCountry "ROU"]
[SourceTitle "playchess.com"]
[Source "ChessBase"]
[SourceQuality "1"]
[TimeControl "40/5400+30:1800+30"]

1. e4 {[%emt 0:00:00]} Nf6 {[%emt 0:00:00]} 2. e5 {[%emt 0:00:02]} Nd5 {[%emt 0:00:00]} 3. d4 {[%emt 0:00:11]} d6 {[%emt 0:00:00]} 4. c4 {[%emt 0:00:07]} Nb6 {[%emt 0:00:00]} 5. exd6 {[%emt 0:01:08]} exd6 {[%emt 0:00:05]} 6. Nc3 {[%emt 0:01:04]} Be7 {[%emt 0:01:57]} 7. Bd3 {[%emt 0:01:33]} O-O {[%emt 0:00:05]} 8. Nge2 {[%emt 0:02:03]} Nc6 {[%emt 0:00:34]} 9. O-O {[%emt 0:00:46]} Nb4 {[%emt 0:02:10] B03: Alekhine's Defence: Four Pawns Attack} 10. Bb1 {[%emt 0:12:10]} c6 {[%emt 0:04:59]} 11. b3 {[%emt 0:01:49]} d5 {[%emt 0:02:28]} 12. c5 {[%emt 0:03:07]} Nd7 {[%emt 0:01:37]} 13. Bf4 $146 {[%emt 0:01:30]} ({Predecessor:} 13. Ng3 g6 14. Bh6 Re8 15. a3 {0-1 (34) Lomasov,S (2516)-Gordievsky,D (2610) Khanty-Mansiysk 2017}) 13... Re8 {[%emt 0:14:50]} 14. Qd2 {[%emt 0:05:03]} Na6 {[%emt 0:01:05]} 15. a3 {[%emt 0:05:09]} Nc7 {[%emt 0:01:24]} 16. Bg3 {[%emt 0:00:36]} Nf8 {[%emt 0:08:25]} 17. h3 {[%emt 0:19:59]} Bf6 {[%emt 0:08:40]} 18. Bc2 {[%emt 0:01:46]} Nfe6 {[%emt 0:01:56]} 19. Qd3 {[%emt 0:04:00]} g6 {[%emt 0:01:41]} 20. Bd6 {[%emt 0:10:12]} Ng7 {[%emt 0:18:15]} 21. g4 {[%emt 0:00:53]} h5 {[%emt 0:00:38]} 22. f3 {[%emt 0:00:55]} Bg5 {[%emt 0:06:10]} 23. Nf4 {[%emt 0:06:18]} Bxf4 {[%emt 0:05:55]} 24. Bxf4 {[%emt 0:00:04]} Nce6 {[%emt 0:04:27]} 25. Bg3 {[%emt 0:02:19]} f5 {[%emt 0:00:50]} 26. Ne2 {[%emt 0:00:52]} Qf6 {[%emt 0:02:17]} 27. Rae1 {[%emt 0:10:16]} Bd7 {[%emt 0:01:43]} 28. Be5 {[%emt 0:03:42]} Qh4 {[%emt 0:01:59]} 29. Kg2 {[%emt 0:01:35]} Qg5 {[%emt 0:04:14]} 30. f4 {[%emt 0:00:35]} Qd8 {[%emt 0:00:52]} 31. g5 {[%emt 0:00:06]} Qe7 {[%emt 0:02:01]} (31... Bc8 $142) 32. Nc3 {[%emt 0:01:28]} Qd8 {[%emt 0:01:10]} 33. b4 {[%emt 0:00:23]} Bc8 {[%emt 0:00:56]} 34. Ba4 {[%emt 0:01:41]} Bd7 {[%emt 0:00:51]} 35. Bf6 {[%emt 0:01:18]} Qc7 {[%emt 0:00:18]} 36. Be5 {[%emt 0:00:06]} Qd8 {[%emt 0:00:01]} 37. Bf6 {[%emt 0:01:31]} Qc7 {[%emt 0:00:05]} 38. Be5 {[%emt 0:00:01]} Qd8 {[%emt 0:00:30]} 39. Bb3 {[%emt 0:00:30]} Bc8 {[%emt 0:01:28]} 40. Kh2 {[%emt 0:00:00]} Kf7 {[%emt 0:00:00]} 41. Ne2 {[%emt 0:02:32]} Kg8 {[%emt 0:04:17]} 42. Ng1 {[%emt 0:00:07]} Nf8 {[%emt 0:03:12]} (42... b6 $16) 43. Nf3 {[%emt 0:10:00]} Be6 {[%emt 0:02:33]} 44. Rb1 {[%emt 0:07:05]} Bd7 {[%emt 0:05:35]} 45. a4 {[%emt 0:02:50]} Be6 {[%emt 0:03:05]} 46. Qc2 {[%emt 0:00:26]} Nd7 {[%emt 0:01:42]} 47. b5 {[%emt 0:01:13]} Kh7 {[%emt 0:01:56]} 48. bxc6 {[%emt 0:01:34]} bxc6 {[%emt 0:00:04] [#]} 49. Bd6 $1 {[%emt 0:00:25]} a5 {[%emt 0:02:27]} 50. Ba2 {[%emt 0:00:20]} Ra7 {[%emt 0:01:56]} 51. Ne5 {[%emt 0:01:02]} Nxe5 {[%emt 0:01:48]} 52. Bxe5 {[%emt 0:01:00]} Bd7 {[%emt 0:03:51]} 53. Rb6 {[%emt 0:00:46]} Kg8 {[%emt 0:02:05]} (53... Qe7 $16 54. Qd2 Ne6) 54. Rfb1 {[%emt 0:00:27]} Ra8 $2 {[%emt 0:01:21]} (54... Ne6 {keeps fighting.} 55. Qg2 Kf7) 55. Rb7 {[%emt 0:01:17]} Ne6 {[%emt 0:00:47]} 56. Rb8 {[%emt 0:05:32]} Rxb8 {[%emt 0:00:50]} 57. Rxb8 {[%emt 0:00:05]} Qe7 {[%emt 0:00:05]} 58. Qb1 {[%emt 0:00:34]} Rxb8 {[%emt 0:01:10]} 59. Qxb8+ {[%emt 0:00:05]} Qe8 {[%emt 0:00:51]} 60. Qa7 {[%emt 0:00:42]} Kf7 {[%emt 0:01:39] [#]} 61. Bxd5 $11 {[%emt 0:02:39]} ({Less strong is} 61. Qxa5 Nxf4 62. Qc3 Ne6 $14) ({White has to play} 61. Kg3 $1 $18) 61... cxd5 {[%emt 0:00:07]} 62. c6 $1 {[%emt 0:00:01] Pin} Ke7 {[%emt 0:01:08]} 63. cxd7 {[%emt 0:02:12]} Qxd7 {[%emt 0:00:01]} 64. Qxa5 {[%emt 0:00:20]} Qb7 {[%emt 0:00:42]} 65. Qb5 {[%emt 0:00:42]} Qxb5 {[%emt 0:00:46]} 66. axb5 {[%emt 0:00:05]} Kd7 {[%emt 0:00:07]} 67. Kg3 Kc8 68. Kf3 Kd7 69. Kg3 1/2-1/2

[Event "European School-ch 2019"]
[Site "Mamaia"]
[Date "2019.06.05"]
[Round "6.17"]
[White "Kanli, Alperen"]
[Black "Tarhan, Adar"]
[Result "1/2-1/2"]
[ECO "C84"]
[WhiteElo "1790"]
[BlackElo "1964"]
[Annotator "NA RC"]
[PlyCount "134"]
[EventDate "2019.05.31"]
[EventType "swiss"]
[EventCountry "ROU"]
[SourceTitle "playchess.com"]
[Source "ChessBase"]
[SourceQuality "1"]
[TimeControl "40/5400+30:1800+30"]

1. e4 {[%emt 0:00:00]} e5 {[%emt 0:00:00]} 2. Nf3 {[%emt 0:00:00]} Nc6 {[%emt 0:00:00]} 3. Bb5 {[%emt 0:00:00]} a6 {[%emt 0:00:00]} 4. Ba4 {[%emt 0:00:08]} Nf6 {[%emt 0:00:00]} 5. O-O {[%emt 0:03:12]} Be7 {[%emt 0:00:08]} 6. d3 {[%emt 0:00:06]} b5 {[%emt 0:00:10]} 7. Bb3 {[%emt 0:00:17]} d6 {[%emt 0:00:09]} 8. a4 {[%emt 0:00:19]} Bd7 {[%emt 0:00:14]} 9. c3 {[%emt 0:11:08] C84: Closed Ruy Lopez: Unusual White 6th moves} O-O {[%emt 0:01:52]} 10. Be3 $146 {[%emt 0:02:19]} ({Predecessor:} 10. Bc2 b4 11. Re1 Rb8 12. Nbd2 Re8 13. h3 d5 14. a5 Bf8 15. Bb3 bxc3 16. bxc3 dxe4 {½-½ (35) Erenburg,S (2589)-So,W (2765) chess.com INT 2019}) 10... Na5 {[%emt 0:01:42]} 11. Bc2 {[%emt 0:02:34]} c5 {[%emt 0:00:46]} 12. Nbd2 {[%emt 0:11:12]} Nc6 {[%emt 0:02:25]} 13. Re1 {[%emt 0:03:32]} h6 {[%emt 0:00:54]} 14. Nf1 {[%emt 0:02:53]} b4 {[%emt 0:06:58]} 15. Ng3 {[%emt 0:07:28]} Be6 {[%emt 0:01:24]} 16. h3 {[%emt 0:24:55]} bxc3 {[%emt 0:15:14]} 17. bxc3 {[%emt 0:00:16]} Re8 {[%emt 0:02:19]} 18. Nh2 {[%emt 0:10:08]} (18. d4 $14 exd4 19. cxd4) 18... Bf8 {[%emt 0:00:32]} 19. Qf3 {[%emt 0:00:23]} d5 {[%emt 0:01:41]} 20. exd5 {[%emt 0:03:26]} Bxd5 {[%emt 0:00:51]} 21. Ne4 {[%emt 0:00:01]} Nxe4 {[%emt 0:07:52]} 22. dxe4 {[%emt 0:00:01]} Be6 {[%emt 0:00:02]} 23. Nf1 {[%emt 0:00:17]} Qa5 {[%emt 0:00:49]} 24. Bd2 {[%emt 0:00:00]} Rab8 {[%emt 0:01:59]} 25. Rab1 {[%emt 0:01:03]} Red8 {[%emt 0:00:56]} 26. Red1 {[%emt 0:01:32]} g6 {[%emt 0:04:33]} 27. Be1 {[%emt 0:01:22]} Ba2 {[%emt 0:09:08]} 28. Ra1 {[%emt 0:01:06]} Be6 {[%emt 0:03:50]} 29. Rab1 {[%emt 0:00:24]} c4 {[%emt 0:11:58]} 30. Ne3 {[%emt 0:00:51]} Bg7 {[%emt 0:02:28]} 31. Rxb8 {[%emt 0:04:55]} Rxb8 {[%emt 0:00:32]} 32. Nd5 {[%emt 0:00:24]} Rb2 {[%emt 0:01:16]} 33. Nb4 {[%emt 0:00:38]} Qb6 {[%emt 0:01:16]} 34. Rc1 {[%emt 0:00:42]} a5 {[%emt 0:05:43]} 35. Nxc6 {[%emt 0:00:05]} Qxc6 36. Qd1 Qd7 {[%emt 0:04:16]} 37. Bd2 {[%emt 0:02:09]} h5 {[%emt 0:00:19]} 38. Kf1 {[%emt 0:01:30]} Bf8 {[%emt 0:02:03]} 39. Rb1 {[%emt 0:01:22]} Rxb1 {[%emt 0:00:24]} 40. Bxb1 {[%emt 0:00:00]} Bh6 {[%emt 0:00:00]} 41. Ke2 {[%emt 0:00:22]} Bxd2 {[%emt 0:00:58]} 42. Qxd2 {[%emt 0:00:04]} Qxa4 {[%emt 0:00:06]} 43. f3 {[%emt 0:01:53]} Qb5 {[%emt 0:00:40]} 44. Ba2 {[%emt 0:00:36]} a4 {[%emt 0:01:06]} 45. g4 {[%emt 0:03:54]} (45. Qc1 $142) 45... hxg4 {[%emt 0:00:10]} 46. hxg4 {[%emt 0:00:03]} a3 {[%emt 0:00:21]} 47. Kd1 {[%emt 0:02:16]} Qb6 {[%emt 0:00:45]} 48. Qe2 {[%emt 0:00:22]} (48. Ke2 $142 Kh7 49. Qc1) 48... Qd6+ {[%emt 0:02:16]} (48... Qg1+ $142 49. Qe1 {[#]} Qg2 $1 {[%mdl 512]}) 49. Kc1 {[%emt 0:02:28]} Qd3 {[%emt 0:00:15]} 50. Qxd3 {[%emt 0:00:17]} cxd3 {[%emt 0:00:04]} 51. c4 {[%emt 0:00:04]} f5 {[%emt 0:00:08]} 52. gxf5 {[%emt 0:00:16]} gxf5 {[%emt 0:00:04]} 53. Kd2 {[%emt 0:13:31]} f4 {[%emt 0:01:50]} 54. Kxd3 {[%emt 0:00:03]} Kf7 {[%emt 0:04:17]} 55. Kc3 {[%emt 0:00:28]} Kg6 $2 {[%emt 0:00:05]} ({Black should try} 55... Bh3 $19 56. Bb3 Bf1) 56. Kb4 {[%emt 0:01:19]} Kg5 {[%emt 0:00:06]} 57. Kxa3 {[%emt 0:00:35]} Kh4 {[%emt 0:00:04]} 58. c5 Bd7 $11 {[%emt 0:00:12]} 59. Bb3 {[%emt 0:03:28]} Kg3 {[%emt 0:08:46]} 60. Bd1 {[%emt 0:00:09]} Kf2 61. Kb4 {[%emt 0:00:36]} Ke1 {[%emt 0:00:07]} 62. Bb3 {[%emt 0:00:15]} Ke2 {[%emt 0:00:04]} 63. c6 {[%emt 0:08:16]} Bxc6 {[%emt 0:00:40]} 64. Kc5 {[%emt 0:00:07]} Kxf3 {[%emt 0:00:24]} 65. Kxc6 {[%emt 0:00:04]} Kxe4 {[%emt 0:00:03]} 66. Kd6 {[%emt 0:03:33]} f3 {[%emt 0:00:29]} 67. Bd5+ {[%emt 0:00:08]} Kd4 1/2-1/2

[Event "European School-ch 2019"]
[Site "Mamaia"]
[Date "2019.06.05"]
[Round "6.18"]
[White "Nedelcu, Teodor-Cosmin"]
[Black "Zheng, Jerry Z"]
[Result "1-0"]
[ECO "E48"]
[WhiteElo "1954"]
[BlackElo "1551"]
[Annotator "NA RC"]
[PlyCount "139"]
[EventDate "2019.05.31"]
[EventType "swiss"]
[EventCountry "ROU"]
[SourceTitle "playchess.com"]
[Source "ChessBase"]
[SourceQuality "1"]
[TimeControl "40/5400+30:1800+30"]

1. d4 {[%emt 0:00:00]} Nf6 {[%emt 0:00:00]} 2. c4 {[%emt 0:00:00]} e6 {[%emt 0:00:00]} 3. Nc3 {[%emt 0:00:00]} Bb4 {[%emt 0:00:00]} 4. e3 {[%emt 0:00:11]} O-O {[%emt 0:00:36]} 5. Bd3 {[%emt 0:00:41]} d5 {[%emt 0:01:40]} 6. Nge2 {[%emt 0:02:34]} dxc4 7. Bxc4 {[%emt 0:00:44]} c5 {[%emt 0:04:02]} 8. O-O {[%emt 0:01:30]} cxd4 {[%emt 0:01:08]} 9. exd4 {[%emt 0:01:33]} b6 {[%emt 0:01:18] E48: Nimzo-Indian: Rubinstein: 5 Bd3 d5 including 6 Ne2, but excluding 6 a3} (9... Nc6 10. a3 Bd6 11. h3 b6 12. Bg5 Bb7 13. d5 exd5 14. Bxd5 Be7 15. Bf3 h6 16. Bf4 Na5 17. Bxb7 Nxb7 18. Rc1 Nc5 19. Nd4 {½-½ (62) Vachier Lagrave,M (2789)-Ding,L (2791) Stavanger 2018}) 10. a3 {[%emt 0:01:21]} Bd6 $146 {[%emt 0:02:49]} ({Predecessor:} 10... Bxc3 11. Nxc3 Qc7 12. Be2 Bb7 13. Bg5 Ne4 14. Nb5 Qd7 15. Bf4 Nc6 16. f3 Nf6 17. Nd6 Nh5 18. Qd2 Rfd8 19. Nxb7 Nxf4 20. Qxf4 Nxd4 {1-0 (54) Moore,G-Jones,T Swansea 1970}) 11. Ng3 {[%emt 0:09:12]} Bb7 {[%emt 0:02:15]} 12. Bg5 {[%emt 0:04:43]} Nbd7 {[%emt 0:08:18]} 13. d5 {[%emt 0:11:21]} exd5 {[%emt 0:06:04]} 14. Bxd5 {[%emt 0:07:19]} Bxd5 {[%emt 0:05:25]} 15. Nxd5 {[%emt 0:02:52]} Be7 {[%emt 0:10:34]} 16. Nxe7+ {[%emt 0:01:59]} Qxe7 {[%emt 0:00:04]} 17. Re1 {[%emt 0:00:38]} Qc5 {[%emt 0:01:03]} 18. Be3 {[%emt 0:00:51]} Qd5 {[%emt 0:03:38]} 19. Qe2 {[%emt 0:02:51]} Rfe8 {[%emt 0:10:59]} 20. Rad1 {[%emt 0:01:59]} Qc6 {[%emt 0:11:03]} 21. Rc1 {[%emt 0:05:10]} Qb7 {[%emt 0:00:35]} 22. Red1 {[%emt 0:01:09]} Nd5 {[%emt 0:06:15]} 23. Qf3 {[%emt 0:01:24]} N7f6 {[%emt 0:03:42]} 24. Bg5 {[%emt 0:02:54]} Rab8 {[%emt 0:05:54]} 25. Nf5 {[%emt 0:05:47]} Re5 {[%emt 0:04:19]} 26. Bxf6 {[%emt 0:07:12]} Nxf6 {[%emt 0:01:51]} 27. Qxb7 {[%emt 0:01:33]} Rxb7 {[%emt 0:02:24]} 28. Rc8+ {[%emt 0:01:03]} Ne8 {[%emt 0:00:50]} 29. f4 {[%emt 0:01:11]} Re6 {[%emt 0:01:52]} 30. Rdd8 {[%emt 0:02:07]} Kf8 {[%emt 0:00:39]} 31. Nxg7 {[%emt 0:01:49]} Kxg7 {[%emt 0:00:39]} 32. Rxe8 {[%emt 0:00:03]} Rbe7 {[%emt 0:01:33]} 33. Rxe7 {[%emt 0:00:50]} Rxe7 {[%emt 0:00:03]} 34. Kf2 {[%emt 0:00:24]} Kg6 {[%emt 0:01:03]} 35. Kf3 {[%emt 0:02:34]} h5 {[%emt 0:01:22]} 36. Rg8+ {[%emt 0:01:55]} Kf6 {[%emt 0:01:25]} 37. Rg5 {[%emt 0:01:14]} h4 {[%emt 0:00:46]} 38. Rd5 {[%emt 0:00:35]} Rc7 {[%emt 0:02:02]} 39. Rd6+ {[%emt 0:00:50]} Kg7 {[%emt 0:00:46]} 40. Rd2 {[%emt 0:00:00]} Rc6 {[%emt 0:00:00]} 41. Kg4 {[%emt 0:00:46]} Rf6 {[%emt 0:01:49]} 42. Rf2 {[%emt 0:00:52]} Rh6 {[%emt 0:00:18]} 43. Kg5 {[%emt 0:01:34]} a6 {[%emt 0:01:05]} 44. f5 {[%emt 0:01:32]} Rd6 {[%emt 0:03:43]} 45. Kxh4 {[%emt 0:00:37]} Rd4+ {[%emt 0:00:36]} 46. g4 {[%emt 0:00:58]} Rd3 {[%emt 0:00:29]} 47. Kg5 {[%emt 0:01:12]} Rd4 {[%emt 0:00:22]} 48. Rc2 {[%emt 0:01:17]} b5 {[%emt 0:01:54]} 49. h3 {[%emt 0:02:09]} b4 {[%emt 0:00:48]} 50. axb4 {[%emt 0:00:37]} Rxb4 {[%emt 0:00:08]} 51. Rc6 {[%emt 0:00:39]} Rxb2 {[%emt 0:01:25]} 52. Rxa6 {[%emt 0:00:04]} Rb3 {[%emt 0:00:21]} 53. h4 {[%emt 0:00:09]} Rb4 {[%emt 0:00:17]} 54. h5 {[%emt 0:00:45]} Rb1 {[%emt 0:01:06]} 55. Ra7 {[%emt 0:01:16]} Rb6 {[%emt 0:00:31]} 56. h6+ {[%emt 0:00:57]} Kg8 {[%emt 0:01:23]} 57. Ra8+ {[%emt 0:00:17]} Kh7 {[%emt 0:00:19]} 58. Rf8 {[%emt 0:00:30]} f6+ {[%emt 0:00:27]} 59. Rxf6 {[%emt 0:00:11]} Rxf6 {[%emt 0:00:08]} 60. Kxf6 {[%emt 0:00:03]} Kxh6 {[%emt 0:00:12]} 61. Ke7 {[%emt 0:00:21]} Kg5 {[%emt 0:00:12]} 62. f6 {[%emt 0:00:10]} Kxg4 {[%emt 0:00:16]} 63. f7 {[%emt 0:00:03]} Kf4 {[%emt 0:00:09]} 64. f8=Q+ {[%emt 0:00:13]} Ke4 {[%emt 0:00:11]} 65. Kd6 {[%emt 0:00:27]} Kd4 {[%emt 0:00:12]} 66. Qf4+ {[%emt 0:00:04]} Kd3 {[%emt 0:00:16]} 67. Kc5 {[%emt 0:00:10]} Ke2 {[%emt 0:00:37]} 68. Kc4 {[%emt 0:00:07]} Ke1 {[%emt 0:00:26]} 69. Kd3 {[%emt 0:00:04]} Kd1 {[%emt 0:00:10]} 70. Qd2# {[%emt 0:00:03]} 1-0